fUSD/lending_fUSD_20240115
["ID","MTS","AMOUNT","RATE_DAILY","PERIOD"]
[311692606,1705336268607,-150.04,0.00033,2]
[311692607,1705336268617,-150.04,0.00033,2]
[311692608,1705336268626,-1103.18869887,0.00033006,7]
[311692609,1705336268636,-1254.30494358,0.0003302,2]
[311692610,1705336268645,-152.0,0.00033042,3]
[311692611,1705336268655,-176.95279026,0.00033042,7]
[311692612,1705336268664,-151.07627181,0.00033063,7]
[311692613,1705336268673,-158.48101384,0.00033087,7]
[311692614,1705336268683,-157.41746226,0.00033091,7]
[311692615,1705336268695,-158.48101384,0.00033094,7]
[311692616,1705336268708,-162.54209167,0.00033098,7]
[311692617,1705336268718,-156.69891745,0.00033115,7]
[311692618,1705336268727,-450.0,0.0003312,3]
[311692619,1705336268736,-163.33117129,0.00033123,7]
[311692620,1705336268747,-158.48101384,0.00033144,7]
[311692621,1705336268755,-500.0,0.0003315,4]
[311692622,1705336268765,-1005.03,0.0003315,4]
[311692623,1705336268774,-3947.23,0.0003315,4]
[311692624,1705336268783,-1541.94,0.0003315,4]
[311692625,1705336268794,-2029.28,0.0003315,4]
[311692626,1705336268804,-368.598533,0.0003315,4]
[311692627,1705336268813,-500.0,0.0003315,4]
[311692628,1705336268848,-640.9580008,0.0003315,4]
[311692629,1705336268858,-500.0,0.0003315,4]
[311692630,1705336268867,-522.8191586,0.0003315,4]
[311692631,1705336268876,-504.86456439,0.0003315,4]
[311692632,1705336268885,-201.33988207,0.0003315,4]
[311692633,1705336268894,-500.0,0.0003315,4]
[311692634,1705336268903,-500.0,0.0003315,4]
[311692635,1705336268912,-561.6757482,0.0003315,4]
[311692636,1705336268921,-209.46474935,0.0003315,4]
[311692637,1705336268930,-500.0,0.0003315,4]
[311692638,1705336268939,-500.0,0.0003315,4]
[311692639,1705336268948,-500.0,0.0003315,4]
[311692640,1705336268957,-450.52576439,0.0003315,4]
[311692641,1705336268966,-501.23982313,0.0003315,4]
[311692642,1705336268975,-500.0,0.0003315,4]
[311692643,1705336268983,-502.19553742,0.0003315,4]
[311692644,1705336268992,-500.0,0.0003315,4]
[311692645,1705336269001,-500.0,0.0003315,4]
[311692646,1705336269010,-500.0,0.0003315,4]
[311692647,1705336269020,-500.0,0.0003315,4]
[311692648,1705336269029,-500.0,0.0003315,4]
[311692649,1705336269038,-499.72958259,0.0003315,4]
[311692650,1705336269047,-505.92294275,0.0003315,4]
[311692651,1705336269056,-502.11928072,0.0003315,4]
[311692652,1705336269066,-500.0,0.0003315,4]
[311692653,1705336269075,-500.0,0.0003315,4]
[311692654,1705336269085,-521.32652432,0.0003315,4]
[311692655,1705336269095,-500.0,0.0003315,4]
[311692656,1705336269105,-500.0,0.0003315,4]
[311692657,1705336269116,-500.0,0.0003315,4]
[311692658,1705336269125,-262.79731359,0.0003315,4]
[311692659,1705336269134,-500.0,0.0003315,4]
[311692660,1705336269144,-500.0,0.0003315,4]
[311692661,1705336269153,-500.0,0.0003315,4]
[311692662,1705336269162,-514.72933264,0.0003315,4]
[311692663,1705336269172,-500.0,0.0003315,4]
[311692664,1705336269181,-500.0,0.0003315,4]
[311692665,1705336269191,-500.0,0.0003315,4]
[311692666,1705336269201,-531.29437963,0.0003315,4]
[311692667,1705336269210,-500.0,0.0003315,4]
[311692668,1705336269220,-500.0,0.0003315,4]
[311692669,1705336269229,-500.0,0.0003315,4]
[311692670,1705336269238,-500.0,0.0003315,4]
[311692671,1705336269247,-500.0,0.0003315,4]
[311692672,1705336269256,-946.21,0.0003315,4]
[311692673,1705336269268,-500.0,0.0003315,4]
[311692674,1705336269279,-659.8,0.0003315,4]
[311692675,1705336269289,-556.75,0.0003315,4]
[311692676,1705336269298,-500.0,0.0003315,4]
[311692677,1705336269307,-500.0,0.0003315,4]
[311692678,1705336269316,-639.27,0.0003315,4]
[311692679,1705336269326,-500.0,0.0003315,4]
[311692680,1705336269334,-500.0,0.0003315,4]
[311692681,1705336269344,-500.0,0.0003315,4]
[311692682,1705336269353,-500.0,0.0003315,4]
[311692683,1705336269362,-500.0,0.0003315,4]
[311692684,1705336269371,-500.0,0.0003315,4]
[311692685,1705336269380,-707.09,0.0003315,4]
[311692686,1705336269390,-500.0,0.0003315,4]
[311692687,1705336269399,-793.61,0.0003315,4]
[311692688,1705336269409,-526.20465455,0.0003315,4]
[311692689,1705336269418,-633.61,0.0003315,4]
[311692690,1705336269427,-500.0,0.0003315,4]
[311692691,1705336269436,-538.67,0.0003315,4]
[311692692,1705336269445,-1000.0,0.0003315,4]
[311692693,1705336269454,-500.0,0.0003315,4]
[311692694,1705336269464,-500.0,0.0003315,4]
[311692695,1705336269473,-509.76372608,0.0003315,4]
[311692696,1705336269482,-500.0,0.0003315,4]
[311692697,1705336269491,-500.0,0.0003315,4]
[311692698,1705336269500,-625.45,0.0003315,4]
[311692699,1705336269509,-500.0,0.0003315,4]
[311692700,1705336269521,-500.0,0.0003315,4]
[311692701,1705336269531,-500.0,0.0003315,4]
[311692702,1705336269540,-500.0,0.0003315,4]
[311692703,1705336269550,-500.0,0.0003315,4]
[311692704,1705336269559,-504.41,0.0003315,4]
[311692705,1705336269569,-539.88324136,0.0003315,4]
[311692706,1705336269578,-500.0,0.0003315,4]
[311692707,1705336269587,-500.0,0.0003315,4]
[311692708,1705336269597,-237.5799016,0.0003315,4]
[311692709,1705336269606,-590.57,0.0003315,4]
[311692710,1705336269615,-500.0,0.0003315,4]
[311692711,1705336269624,-500.0,0.0003315,4]
[311692712,1705336269633,-504.99,0.0003315,4]
[311692713,1705336269643,-366.39207601,0.0003315,4]
[311692714,1705336269652,-534.45,0.0003315,4]
[311692715,1705336269661,-638.90159965,0.0003315,4]
[311692716,1705336269670,-631.31,0.0003315,4]
[311692717,1705336269679,-502.18961072,0.0003315,4]
[311692718,1705336269689,-500.0,0.0003315,4]
[311692719,1705336269698,-943.26,0.0003315,4]
[311692720,1705336269709,-500.0,0.0003315,4]
[311692721,1705336269718,-500.0,0.0003315,4]
[311692722,1705336269727,-500.0,0.0003315,4]
[311692723,1705336269736,-500.0,0.0003315,4]
[311692724,1705336269746,-500.0,0.0003315,4]
[311692725,1705336269755,-500.0,0.0003315,4]
[311692726,1705336269764,-500.0,0.0003315,4]
[311692727,1705336269775,-518.55,0.0003315,4]
[311692728,1705336269784,-500.0,0.0003315,4]
[311692729,1705336269793,-256.52851869,0.0003315,4]
[311692730,1705336269802,-817.32,0.0003315,4]
[311692731,1705336269811,-503.98,0.0003315,4]
[311692732,1705336269820,-500.0,0.0003315,4]
[311692733,1705336269830,-500.0,0.0003315,4]
[311692734,1705336269839,-707.82,0.0003315,4]
[311692735,1705336269849,-500.0,0.0003315,4]
[311692736,1705336269859,-500.0,0.0003315,4]
[311692737,1705336269868,-500.0,0.0003315,4]
[311692738,1705336269877,-500.0,0.0003315,4]
[311692739,1705336269886,-500.0,0.0003315,4]
[311692740,1705336269895,-578.69,0.0003315,4]
[311692741,1705336269905,-500.0,0.0003315,4]
[311692742,1705336269914,-500.0,0.0003315,4]
[311692743,1705336269924,-500.0,0.0003315,4]
[311692744,1705336269933,-500.0,0.0003315,4]
[311692745,1705336269942,-500.0,0.0003315,4]
[311692746,1705336269952,-500.0,0.0003315,4]
[311692747,1705336269962,-500.0,0.0003315,4]
[311692748,1705336269971,-500.0,0.0003315,4]
[311692749,1705336269981,-500.0,0.0003315,20]
[311692750,1705336269991,-500.0,0.0003315,4]
[311692751,1705336270000,-634.98,0.0003315,4]
[311692752,1705336270010,-500.0,0.0003315,4]
[311692753,1705336270021,-500.0,0.0003315,4]
[311692754,1705336270030,-500.0,0.0003315,4]
[311692755,1705336270211,-500.0,0.0003315,4]
[311692756,1705336270222,-500.0,0.0003315,4]
[311692757,1705336270232,-500.0,0.0003315,4]
[311692758,1705336270241,-500.0,0.0003315,4]
[311692759,1705336270250,-500.0,0.0003315,4]
[311692760,1705336270259,-686.23,0.0003315,4]
[311692761,1705336270270,-500.0,0.0003315,4]
[311692762,1705336270278,-500.0,0.0003315,4]
[311692763,1705336270288,-500.0,0.0003315,4]
[311692764,1705336270297,-500.0,0.0003315,4]
[311692765,1705336270306,-500.0,0.0003315,4]
[311692766,1705336270315,-500.0,0.0003315,4]
[311692767,1705336270324,-500.0,0.0003315,4]
[311692768,1705336270333,-503.01989161,0.0003315,4]
[311692769,1705336270342,-504.1524505,0.0003315,4]
[311692770,1705336270351,-500.0,0.0003315,4]
[311692771,1705336270360,-500.0,0.0003315,4]
[311692772,1705336270369,-500.0,0.0003315,4]
[311692773,1705336270379,-500.0,0.0003315,4]
[311692774,1705336270388,-353.70511161,0.0003315,4]
[311692775,1705336270397,-900.67,0.0003315,4]
[311692776,1705336270406,-500.0,0.0003315,4]
[311692777,1705336270416,-500.0,0.0003315,4]
[311692778,1705336270425,-500.0,0.0003315,4]
[311692779,1705336270434,-250.0,0.0003315,4]
[311692780,1705336270444,-500.0,0.0003315,4]
[311692781,1705336270453,-500.0,0.0003315,4]
[311692782,1705336270462,-500.0,0.0003315,4]
[311692783,1705336270472,-500.0,0.0003315,4]
[311692784,1705336270482,-237.87120841,0.0003315,4]
[311692785,1705336270492,-500.0,0.0003315,4]
[311692786,1705336270501,-500.0,0.0003315,4]
[311692787,1705336270511,-557.15,0.0003315,4]
[311692788,1705336270521,-500.0,0.0003315,4]
[311692789,1705336270530,-500.0,0.0003315,4]
[311692790,1705336270539,-500.0,0.0003315,4]
[311692791,1705336270548,-500.0,0.0003315,4]
[311692792,1705336270558,-500.0,0.0003315,4]
[311692793,1705336270567,-500.0,0.0003315,4]
[311692794,1705336270576,-500.0,0.0003315,4]
[311692795,1705336270586,-500.0,0.0003315,4]
[311692796,1705336270595,-500.0,0.0003315,4]
[311692797,1705336270605,-500.0,0.0003315,4]
[311692798,1705336270614,-625.16,0.0003315,4]
[311692799,1705336270623,-500.0,0.0003315,15]
[311692800,1705336270633,-500.0,0.0003315,4]
[311692801,1705336270642,-500.0,0.0003315,4]
[311692802,1705336270651,-675.70199405,0.0003315,2]
[311692803,1705336270661,-505.40256801,0.0003315,4]
[311692804,1705336270670,-500.0,0.0003315,4]
[311692805,1705336270680,-500.0,0.0003315,4]
[311692806,1705336270690,-500.0,0.0003315,4]
[311692807,1705336270700,-500.0,0.0003315,4]
[311692808,1705336270711,-500.0,0.0003315,4]
[311692809,1705336270725,-500.0,0.0003315,4]
[311692810,1705336270735,-500.0,0.0003315,4]
[311692811,1705336270744,-415.26990043,0.0003315,4]
[311692812,1705336270754,-706.86,0.0003315,4]
[311692813,1705336270763,-500.0,0.0003315,4]
[311692814,1705336270773,-500.0,0.0003315,4]
[311692815,1705336270783,-500.0,0.0003315,4]
[311692816,1705336270793,-923.69,0.0003315,4]
[311692817,1705336270803,-500.0,0.0003315,4]
[311692818,1705336270812,-500.0,0.0003315,4]
[311692819,1705336270821,-500.0,0.0003315,4]
[311692820,1705336270830,-500.0,0.0003315,4]
[311692821,1705336270839,-500.0,0.0003315,4]
[311692822,1705336270849,-500.0,0.0003315,4]
[311692823,1705336270857,-500.0,0.0003315,4]
[311692824,1705336270867,-500.0,0.0003315,4]
[311692825,1705336270876,-500.0,0.0003315,4]
[311692826,1705336270885,-500.0,0.0003315,4]
[311692827,1705336270894,-500.0,0.0003315,4]
[311692828,1705336270903,-500.0,0.0003315,4]
[311692829,1705336270912,-649.21,0.0003315,4]
[311692830,1705336270922,-500.0,0.0003315,4]
[311692831,1705336270931,-648.12,0.0003315,4]
[311692832,1705336270941,-500.0,0.0003315,4]
[311692833,1705336270950,-500.0,0.0003315,4]
[311692834,1705336270960,-500.0,0.0003315,4]
[311692835,1705336270970,-500.0,0.0003315,4]
[311692836,1705336270979,-500.0,0.0003315,4]
[311692837,1705336270988,-545.40359257,0.0003315,4]
[311692838,1705336270997,-500.0,0.0003315,4]
[311692839,1705336271006,-508.13047774,0.0003315,4]
[311692840,1705336271015,-503.88,0.0003315,4]
[311692841,1705336271024,-500.0,0.0003315,4]
[311692842,1705336271033,-500.0,0.0003315,4]
[311692843,1705336271042,-548.92216537,0.0003315,4]
[311692844,1705336271051,-500.0,0.0003315,4]
[311692845,1705336271060,-500.0,0.0003315,4]
[311692846,1705336271068,-500.0,0.0003315,4]
[311692847,1705336271078,-1253.2,0.0003315,4]
[311692848,1705336271087,-537.0923858,0.0003315,4]
[311692849,1705336271096,-460.90040712,0.0003315,4]
[311692850,1705336271106,-500.0,0.0003315,4]
[311692851,1705336271115,-500.0,0.0003315,4]
[311692852,1705336271124,-607.59,0.0003315,4]
[311692853,1705336271133,-506.89116593,0.0003315,4]
[311692854,1705336271142,-500.95,0.0003315,4]
[311692855,1705336271151,-500.0,0.0003315,4]
[311692856,1705336271160,-500.0,0.0003315,4]
[311692857,1705336271169,-500.0,0.0003315,4]
[311692858,1705336271178,-500.0,0.0003315,4]
[311692859,1705336271187,-500.0,0.0003315,4]
[311692860,1705336271196,-571.68,0.0003315,4]
[311692861,1705336271205,-500.0,0.0003315,4]
[311692862,1705336271214,-500.0,0.0003315,4]
[311692863,1705336271224,-724.23,0.0003315,4]
[311692864,1705336271232,-938.8,0.0003315,4]
[311692865,1705336271242,-734.97,0.0003315,4]
[311692866,1705336271251,-500.0,0.0003315,4]
[311692867,1705336271260,-500.0,0.0003315,4]
[311692868,1705336271269,-901.15,0.0003315,4]
[311692869,1705336271279,-500.0,0.0003315,4]
[311692870,1705336271288,-530.17934489,0.0003315,4]
[311692871,1705336271297,-500.0,0.0003315,4]
[311692872,1705336271306,-500.0,0.0003315,4]
[311692873,1705336271315,-820.78,0.0003315,4]
[311692874,1705336271324,-500.0,0.0003315,4]
[311692875,1705336271333,-502.92,0.0003315,4]
[311692876,1705336271342,-514.72449201,0.0003315,4]
[311692877,1705336271352,-212.84356312,0.0003315,4]
[311692878,1705336271361,-659.55,0.0003315,4]
[311692879,1705336271370,-500.0,0.0003315,4]
[311692880,1705336271379,-500.0,0.0003315,4]
[311692881,1705336271388,-500.0,0.0003315,4]
[311692882,1705336271398,-500.0,0.0003315,4]
[311692883,1705336271407,-750.12,0.0003315,4]
[311692884,1705336271417,-335.76966969,0.0003315,4]
[311692885,1705336271426,-500.0,0.0003315,4]
[311692886,1705336271435,-500.0,0.0003315,4]
[311692887,1705336271445,-500.0,0.0003315,4]
[311692888,1705336271454,-500.0,0.0003315,4]
[311692889,1705336271464,-500.0,0.0003315,4]
[311692890,1705336271473,-500.0,0.0003315,4]
[311692891,1705336271482,-500.0,0.0003315,4]
[311692892,1705336271492,-500.0,0.0003315,4]
[311692893,1705336271502,-520.18,0.0003315,4]
[311692894,1705336271512,-519.87322393,0.0003315,4]
[311692895,1705336271521,-500.0,0.0003315,4]
[311692896,1705336271532,-500.0,0.0003315,4]
[311692897,1705336271541,-545.26,0.0003315,2]
[311692898,1705336271551,-500.0,0.0003315,4]
[311692899,1705336271560,-504.40638089,0.0003315,4]
[311692900,1705336271570,-500.0,0.0003315,4]
[311692901,1705336271579,-500.0,0.0003315,4]
[311692902,1705336271589,-500.0,0.0003315,4]
[311692903,1705336271598,-164.14320234,0.0003315,4]
[311692904,1705336271607,-500.0,0.0003315,4]
[311692905,1705336271617,-500.0,0.0003315,4]
[311692906,1705336271626,-400.30307283,0.0003315,4]
[311692907,1705336271635,-1000.0,0.0003315,4]
[311692908,1705336271645,-707.58,0.0003315,4]
[311692909,1705336271654,-500.0,0.0003315,4]
[311692910,1705336271663,-500.0,0.0003315,4]
[311692911,1705336271673,-500.0,0.0003315,4]
[311692912,1705336271682,-504.88074531,0.0003315,4]
[311692913,1705336271692,-567.7,0.0003315,4]
[311692914,1705336271701,-503.3787205,0.0003315,4]
[311692915,1705336271710,-500.0,0.0003315,30]
[311692916,1705336271720,-500.0,0.0003315,4]
[311692917,1705336271729,-500.0,0.0003315,4]
[311692918,1705336271738,-426.27844813,0.0003315,4]
[311692919,1705336271747,-656.15,0.0003315,4]
[311692920,1705336271756,-500.0,0.0003315,4]
[311692921,1705336271765,-506.08969645,0.0003315,4]
[311692922,1705336271776,-588.69076797,0.0003315,4]
[311692923,1705336271785,-500.0,0.0003315,4]
[311692924,1705336271794,-776.13,0.0003315,4]
[311692925,1705336271803,-500.0,0.0003315,4]
[311692926,1705336271812,-500.0,0.0003315,4]
[311692927,1705336271821,-500.0,0.0003315,4]
[311692928,1705336271831,-500.0,0.0003315,4]
[311692929,1705336271840,-500.0,0.0003315,4]
[311692930,1705336271850,-500.0,0.0003315,4]
[311692931,1705336271860,-500.0,0.0003315,4]
[311692932,1705336271870,-500.0,0.0003315,4]
[311692933,1705336271879,-500.0,0.0003315,4]
[311692934,1705336271889,-563.13,0.0003315,4]
[311692935,1705336271898,-500.0,0.0003315,4]
[311692936,1705336271908,-834.55,0.0003315,4]
[311692937,1705336271917,-500.0,0.0003315,4]
[311692938,1705336271926,-500.0,0.0003315,4]
[311692939,1705336271936,-500.0,0.0003315,4]
[311692940,1705336271945,-500.0,0.0003315,4]
[311692941,1705336271954,-500.26652911,0.0003315,4]
[311692942,1705336271964,-500.0,0.0003315,4]
[311692943,1705336271973,-500.0,0.0003315,4]
[311692944,1705336271982,-500.0,0.0003315,4]
[311692945,1705336271992,-500.0,0.0003315,4]
[311692946,1705336272001,-500.0,0.0003315,4]
[311692947,1705336272010,-500.0,0.0003315,4]
[311692948,1705336272019,-500.0,0.0003315,4]
[311692949,1705336272029,-500.0,0.0003315,4]
[311692950,1705336272039,-505.43824664,0.0003315,4]
[311692951,1705336272048,-691.94,0.0003315,4]
[311692952,1705336272057,-500.0,0.0003315,4]
[311692953,1705336272066,-500.0,0.0003315,4]
[311692954,1705336272075,-500.0,0.0003315,4]
[311692955,1705336272084,-500.0,0.0003315,4]
[311692956,1705336272093,-601.24,0.0003315,4]
[311692957,1705336272103,-500.0,0.0003315,4]
[311692958,1705336272112,-500.0,0.0003315,4]
[311692959,1705336272122,-500.0,0.0003315,4]
[311692960,1705336272131,-500.0,0.0003315,4]
[311692961,1705336272140,-500.0,0.0003315,4]
[311692962,1705336272149,-751.5,0.0003315,4]
[311692963,1705336272158,-500.0,0.0003315,4]
[311692964,1705336272168,-500.0,0.0003315,4]
[311692965,1705336272177,-500.0,0.0003315,4]
[311692966,1705336272187,-503.18528785,0.0003315,4]
[311692967,1705336272196,-500.0,0.0003315,4]
[311692968,1705336272205,-500.0,0.0003315,4]
[311692969,1705336272214,-539.8,0.0003315,4]
[311692970,1705336272223,-500.0,0.0003315,4]
[311692971,1705336272232,-500.0,0.0003315,4]
[311692972,1705336272241,-500.0,0.0003315,4]
[311692973,1705336272250,-500.0,0.0003315,4]
[311692974,1705336272259,-500.0,0.0003315,4]
[311692975,1705336272269,-521.77,0.0003315,4]
[311692976,1705336272277,-500.0,0.0003315,4]
[311692977,1705336272287,-500.0,0.0003315,4]
[311692978,1705336272296,-505.06648192,0.0003315,4]
[311692979,1705336272305,-616.39,0.0003315,4]
[311692980,1705336272314,-500.0,0.0003315,4]
[311692981,1705336272324,-500.0,0.0003315,4]
[311692982,1705336272333,-588.93,0.0003315,4]
[311692983,1705336272342,-1063.93,0.0003315,4]
[311692984,1705336272351,-510.27,0.0003315,4]
[311692985,1705336272361,-500.0,0.0003315,4]
[311692986,1705336272369,-356.01135112,0.0003315,4]
[311692987,1705336272379,-500.0,0.0003315,4]
[311692988,1705336272389,-2073.95,0.0003315,4]
[311692989,1705336272399,-500.0,0.0003315,4]
[311692990,1705336272408,-500.0,0.0003315,4]
[311692991,1705336272418,-500.0,0.0003315,4]
[311692992,1705336272427,-500.0,0.0003315,4]
[311692993,1705336272438,-500.0,0.0003315,4]
[311692994,1705336272448,-500.0,0.0003315,4]
[311692995,1705336272458,-500.0,0.0003315,4]
[311692996,1705336272467,-505.19,0.0003315,4]
[311692997,1705336272477,-500.0,0.0003315,4]
[311692998,1705336272486,-500.0,0.0003315,4]
[311692999,1705336272496,-710.42,0.0003315,4]
[311693000,1705336272505,-522.96,0.0003315,4]
[311693001,1705336272515,-500.0,0.0003315,4]
[311693002,1705336272525,-500.0,0.0003315,4]
[311693003,1705336272535,-500.0,0.0003315,4]
[311693004,1705336272544,-500.0,0.0003315,4]
[311693005,1705336272553,-526.99,0.0003315,4]
[311693006,1705336272562,-160.7691382,0.0003315,4]
[311693007,1705336272571,-506.89,0.0003315,4]
[311693008,1705336272580,-500.0,0.0003315,4]
[311693009,1705336272590,-500.0,0.0003315,4]
[311693010,1705336272599,-613.49,0.0003315,4]
[311693011,1705336272608,-500.0,0.0003315,4]
[311693012,1705336272617,-1036.93,0.0003315,4]
[311693013,1705336272626,-1501.1,0.0003315,4]
[311693014,1705336272635,-500.0,0.0003315,4]
[311693015,1705336272645,-500.0,0.0003315,4]
[311693016,1705336272655,-500.0,0.0003315,4]
[311693017,1705336272665,-500.0,0.0003315,4]
[311693018,1705336272674,-500.0,0.0003315,4]
[311693019,1705336272684,-592.59,0.0003315,4]
[311693020,1705336272694,-500.0,0.0003315,4]
[311693021,1705336272703,-500.0,0.0003315,4]
[311693022,1705336272714,-500.0,0.0003315,4]
[311693023,1705336272723,-500.0,0.0003315,4]
[311693024,1705336272732,-500.0,0.0003315,4]
[311693025,1705336272741,-1025.96,0.0003315,4]
[311693026,1705336272750,-500.0,0.0003315,4]
[311693027,1705336272761,-1085.2,0.0003315,4]
[311693028,1705336272771,-500.0,0.0003315,2]
[311693029,1705336272780,-500.0,0.0003315,4]
[311693030,1705336272790,-500.0,0.0003315,4]
[311693031,1705336272799,-500.0,0.0003315,4]
[311693032,1705336272808,-500.0,0.0003315,4]
[311693033,1705336272817,-500.0,0.0003315,4]
[311693034,1705336272826,-531.57,0.0003315,4]
[311693035,1705336272836,-500.0,0.0003315,4]
[311693036,1705336272845,-2270.36,0.0003315,2]
[311693037,1705336272854,-500.0,0.0003315,4]
[311693038,1705336272863,-500.0,0.0003315,4]
[311693039,1705336272873,-500.0,0.0003315,4]
[311693040,1705336272882,-629.09,0.0003315,4]
[311693041,1705336272891,-500.0,0.0003315,4]
[311693042,1705336272900,-500.0,0.0003315,4]
[311693043,1705336272910,-695.84,0.0003315,4]
[311693044,1705336272919,-501.94688052,0.0003315,4]
[311693045,1705336272928,-730.27,0.0003315,4]
[311693046,1705336272937,-867.48,0.0003315,4]
[311693047,1705336272948,-509.59586549,0.0003315,4]
[311693048,1705336272957,-500.0,0.0003315,4]
[311693049,1705336272966,-500.0,0.0003315,4]
[311693050,1705336272975,-500.0,0.0003315,4]
[311693051,1705336272984,-156.82008762,0.0003315,4]
[311693052,1705336272993,-1613.09,0.0003315,4]
[311693053,1705336273003,-500.0,0.0003315,4]
[311693054,1705336273013,-500.0,0.0003315,2]
[311693055,1705336273023,-500.0,0.0003315,4]
[311693056,1705336273032,-500.0,0.0003315,4]
[311693057,1705336273041,-500.0,0.0003315,2]
[311693058,1705336273051,-500.0,0.0003315,4]
[311693059,1705336273060,-500.0,0.0003315,4]
[311693060,1705336273070,-500.0,0.0003315,4]
[311693061,1705336273079,-500.0,0.0003315,4]
[311693062,1705336273088,-500.0,0.0003315,4]
[311693063,1705336273097,-500.0,0.0003315,4]
[311693064,1705336273106,-653.82,0.0003315,4]
[311693065,1705336273116,-500.0,0.0003315,4]
[311693066,1705336273125,-500.0,0.0003315,4]
[311693067,1705336273134,-1541.23,0.0003315,4]
[311693068,1705336273143,-500.0,0.0003315,4]
[311693069,1705336273152,-500.0,0.0003315,4]
[311693070,1705336273161,-500.0,0.0003315,4]
[311693071,1705336273170,-500.0,0.0003315,4]
[311693072,1705336273180,-506.54294702,0.0003315,4]
[311693073,1705336273188,-500.0,0.0003315,4]
[311693074,1705336273197,-522.4433421,0.0003315,4]
[311693075,1705336273206,-616.32,0.0003315,4]
[311693076,1705336273215,-500.0,0.0003315,4]
[311693077,1705336273224,-802.92,0.0003315,4]
[311693078,1705336273233,-500.0,0.0003315,4]
[311693079,1705336273242,-500.0,0.0003315,4]
[311693080,1705336273251,-500.0,0.0003315,4]
[311693081,1705336273260,-1105.66,0.0003315,4]
[311693082,1705336273270,-500.0,0.0003315,4]
[311693083,1705336273279,-595.35,0.0003315,4]
[311693084,1705336273288,-204.4959966,0.0003315,4]
[311693085,1705336273297,-500.0,0.0003315,4]
[311693086,1705336273306,-500.0,0.0003315,4]
[311693087,1705336273315,-512.81662033,0.0003315,4]
[311693088,1705336273324,-500.0,0.0003315,4]
[311693089,1705336273333,-500.0,0.0003315,4]
[311693090,1705336273342,-500.0,0.0003315,4]
[311693091,1705336273351,-500.0,0.0003315,4]
[311693092,1705336273360,-500.0,0.0003315,4]
[311693093,1705336273369,-500.0,0.0003315,4]
[311693094,1705336273378,-1560.27,0.0003315,4]
[311693095,1705336273387,-500.0,0.0003315,4]
[311693096,1705336273396,-1894.49,0.0003315,4]
[311693097,1705336273405,-500.0,0.0003315,4]
[311693098,1705336273415,-500.0,0.0003315,4]
[311693099,1705336273424,-500.0,0.0003315,4]
[311693100,1705336273433,-500.0,0.0003315,4]
[311693101,1705336273442,-668.78,0.0003315,4]
[311693102,1705336273452,-607.41,0.0003315,4]
[311693103,1705336273462,-500.0,0.0003315,4]
[311693104,1705336273472,-500.0,0.0003315,2]
[311693105,1705336273481,-523.99516762,0.0003315,4]